fUSD/lending_fUSD_20251221
["ID","MTS","AMOUNT","RATE_DAILY","PERIOD"]
[399365675,1766317842587,-2069.65048579,0.00016438,2]
[399365676,1766317842596,-2069.65048579,0.00016438,2]
[399365677,1766317842607,-2069.65048579,0.00016438,2]
[399365678,1766317842618,-2069.65048579,0.00016438,2]
[399365679,1766317842628,-2069.65048579,0.00016438,2]
[399365680,1766317842638,-2069.65048579,0.00016438,2]
[399365681,1766317842649,-2069.65048579,0.00016438,2]
[399365682,1766317842660,-2069.65048579,0.00016438,2]
[399365683,1766317842670,-2069.65048579,0.00016438,2]
[399365684,1766317842680,-2069.65048579,0.00016438,2]
[399365685,1766317842690,-2069.65048579,0.00016438,2]
[399365686,1766317842700,-2060.64195954,0.00016438,2]
[399365687,1766317843192,-9.00852625,0.00016438,2]
[399365688,1766317843202,-2060.13689557,0.00016438,2]
[399365689,1766317843215,-9.51359022,0.00016438,2]
[399365690,1766317843225,-2044.1359996,0.00016438,2]
[399365691,1766317843238,-25.51448619,0.00016438,2]
[399365692,1766317843247,-682.30895515,0.00016438,2]
[399365693,1766317843259,-1060.79010355,0.00016438,2]
[399365694,1766317843272,-326.55142709,0.00016438,2]
[399365695,1766317843282,-1187.33382774,0.00016438,2]
[399365696,1766317843342,-530.94829907,0.00016438,2]
[399365697,1766317843353,-351.36835898,0.00016438,2]
[399365698,1766317843362,-261.00763931,0.00016438,2]
[399365699,1766317843373,-1808.64284648,0.00016438,2]
[399365700,1766317843382,-2069.65048579,0.00016438,2]
[399365701,1766317843391,-2069.65048579,0.00016438,2]
[399365702,1766317843400,-2069.65048579,0.00016438,2]
[399365703,1766317843409,-2069.65048579,0.00016438,2]
[399365704,1766317843420,-2069.65048579,0.00016438,2]
[399365705,1766317843429,-2069.65048579,0.00016438,2]
[399365706,1766317843438,-2069.65048579,0.00016438,2]
[399365707,1766317843447,-2069.65048579,0.00016438,2]
[399365708,1766317843540,-2069.65048579,0.00016438,2]
[399365709,1766317843551,-2069.65048579,0.00016438,2]
[399365710,1766317843561,-2069.65048579,0.00016438,2]
[399365711,1766317843571,-2069.65048579,0.00016438,2]
[399365712,1766317843583,-2069.65048579,0.00016438,2]
[399365713,1766317843593,-2069.65048579,0.00016438,2]
[399365714,1766317843603,-2069.65048579,0.00016438,2]
[399365715,1766317843614,-2069.65048579,0.00016438,2]
[399365716,1766317843624,-2069.65048579,0.00016438,2]
[399365717,1766317843633,-2069.65048579,0.00016438,2]
[399365718,1766317843642,-2069.65048579,0.00016438,2]
[399365719,1766317843651,-2069.65048579,0.00016438,2]
[399365720,1766317843660,-2069.65048579,0.00016438,2]
[399365721,1766317843670,-2069.65048579,0.00016438,2]
[399365722,1766317843679,-2069.65048579,0.00016438,2]
[399365723,1766317843688,-2069.65048579,0.00016438,2]
[399365724,1766317843696,-2069.65048579,0.00016438,2]
[399365725,1766317843705,-2069.65048579,0.00016438,2]
[399365726,1766317843715,-553.63,0.00016438,2]
[399365727,1766317843724,-800.0,0.00016438,2]
[399365728,1766317843734,-150.0,0.00016443,2]
[399365729,1766317843743,-150.0,0.00016455,2]
[399365730,1766317843751,-9110.5690223,0.00016467,2]
[399365731,1766317843761,-69561.9763215,0.00016467,2]
[399365732,1766317843770,-150.0,0.00016472,2]
[399365733,1766317843780,-150.0,0.00016477,2]
[399365734,1766317843788,-500.0,0.00016481,2]
[399365735,1766317843799,-500.0,0.00016481,2]
[399365736,1766317843809,-500.0,0.00016481,2]
[399365737,1766317843818,-500.0,0.00016481,2]
[399365738,1766317843827,-500.0,0.00016481,2]
[399365739,1766317843836,-257441.8061448,0.00016482,2]
[399365740,1766317843845,-266.2742081,0.00016482,2]
[399365741,1766317843854,-68179.0999537,0.00016482,2]
[399365742,1766317843863,-150.0,0.00016501,2]
[399365743,1766317843871,-150.0,0.00016511,2]
[399365744,1766317843881,-151.34,0.00016515,2]
[399365745,1766317843889,-748.8938967,0.00016521,2]
[399365746,1766317843898,-1000.0,0.00016521,2]
[399365747,1766317843907,-1000.0,0.00016521,2]
[399365748,1766317843916,-1000.0,0.00016521,2]
[399365749,1766317843925,-1000.0,0.00016521,2]
[399365750,1766317843934,-1000.0,0.00016521,2]
[399365751,1766317843943,-500.0,0.00016521,2]
[399365752,1766317843952,-1000.0,0.00016521,2]
[399365753,1766317843961,-502.34941568,0.00016521,2]
[399365754,1766317843969,-1000.0,0.00016521,2]
[399365755,1766317843978,-1002.24967112,0.00016521,2]
[399365756,1766317843986,-1000.0,0.00016521,2]
[399365757,1766317843995,-1000.0,0.00016521,2]
[399365758,1766317844004,-461.33477897,0.00016521,2]
[399365759,1766317844012,-311.84683956,0.00016521,2]
[399365760,1766317844021,-1000.0,0.00016521,2]
[399365761,1766317844030,-1000.0,0.00016521,2]
[399365762,1766317844039,-1000.0,0.00016521,2]
[399365763,1766317844047,-517.55500559,0.00016521,2]
[399365764,1766317844056,-1000.0,0.00016521,2]
[399365765,1766317844065,-1000.0,0.00016521,2]
[399365766,1766317844077,-556.72332682,0.00016521,2]
[399365767,1766317844095,-1000.0,0.00016521,2]
[399365768,1766317844104,-1000.0,0.00016521,2]
[399365769,1766317844113,-1000.0,0.00016521,2]
[399365770,1766317844122,-1000.0,0.00016521,2]
[399365771,1766317844130,-1000.0,0.00016521,2]
[399365772,1766317844139,-1000.0,0.00016521,2]
[399365773,1766317844148,-1000.0,0.00016521,2]
[399365774,1766317844157,-1000.0,0.00016521,2]
[399365775,1766317844166,-1000.0,0.00016521,2]
[399365776,1766317844175,-150.0,0.00016523,2]
[399365777,1766317844183,-150.0,0.00016533,2]
[399365778,1766317844192,-1000.0,0.0001656,2]
[399365779,1766317844200,-3500.0,0.0001656,2]
[399365780,1766317844209,-150.0,0.00016562,2]
[399365781,1766317844218,-150.0,0.00016562,2]
[399365782,1766317844227,-150.0,0.00016562,2]
[399365783,1766317844236,-150.0,0.00016575,2]
[399365784,1766317844245,-150.0,0.00016579,2]
[399365785,1766317844254,-150.0,0.0001659,2]
[399365786,1766317844262,-150.0,0.00016622,2]
[399365787,1766317844271,-150.0,0.00016626,2]
[399365788,1766317844280,-452.30605046,0.00016641,2]
[399365789,1766317844289,-150.0,0.00016647,2]
[399365790,1766317844298,-150.0,0.00016647,2]
[399365791,1766317844306,-150.0,0.00016647,2]
[399365792,1766317844315,-150.0,0.00016668,2]
[399365793,1766317844326,-150.0,0.00016677,2]
[399365794,1766317844335,-166.66,0.00016692,2]
[399365795,1766317844343,-150.0,0.00016703,2]
[399365796,1766317844352,-449.0,0.00016712,2]
[399365797,1766317844361,-165.15,0.00016712,2]
[399365798,1766317844369,-150.0,0.00016715,2]
[399365799,1766317844378,-150.0,0.00016729,2]
[399365800,1766317844387,-150.0,0.00016744,2]
[399365801,1766317844395,-150.0,0.0001676,2]
[399365802,1766317844404,-150.0,0.00016774,2]
[399365803,1766317844413,-150.0,0.0001678,2]
[399365804,1766317844422,-150.0,0.00016782,2]
[399365805,1766317844430,-150.0,0.00016816,2]
[399365806,1766317844439,-150.0,0.00016832,2]
[399365807,1766317844449,-3389.0,0.00016839,2]
[399365808,1766317844458,-150.0,0.0001685,2]
[399365809,1766317844467,-150.0,0.00016865,2]
[399365810,1766317844475,-150.0,0.00016873,2]
[399365811,1766317844484,-150.0,0.0001688,2]
[399365812,1766317844493,-150.0,0.00016883,2]
[399365813,1766317844502,-500.0,0.00016899,2]
[399365814,1766317844511,-17390.24673447,0.000169,3]
[399365815,1766317844519,-10000.0,0.000169,2]
[399365816,1766317844528,-1414.34102404,0.000169,2]
[399365817,1766317844537,-8700.31826714,0.000169,2]
[399365818,1766317844546,-452.30605046,0.000169,2]
[399365819,1766317844554,-5442.52702025,0.000169,2]
[399365820,1766317844563,-607.92389874,0.000169,2]
[399365821,1766317844572,-150.0,0.00016918,2]
[399365822,1766317844580,-150.0,0.0001693,2]
[399365823,1766317844589,-150.0,0.00016935,2]
[399365824,1766317844598,-219.80510971,0.00016973,2]
[399365825,1766317844608,-1120.29316525,0.00016985,5]
[399365826,1766317844616,-52741.43,0.00016986,2]
[399365827,1766317844625,-150.0,0.00016986,2]
[399365828,1766317844634,-150.0,0.00016986,2]
[399365829,1766317844643,-150.0,0.00016986,2]
[399365830,1766317844652,-150.0,0.00016986,2]
[399365831,1766317844661,-150.0,0.00016986,2]
[399365832,1766317844669,-150.0,0.00016986,2]
[399365833,1766317844678,-150.0,0.00016986,2]
[399365834,1766317844687,-150.0,0.00016986,2]
[399365835,1766317844696,-150.0,0.00016986,2]
[399365836,1766317844705,-150.0,0.00016986,2]
[399365837,1766317844714,-190.1242664,0.0001699,2]
[399365838,1766317844723,-151.0,0.00016997,2]
[399365839,1766317844731,-151.0,0.00016997,2]
[399365840,1766317844741,-1120.29316525,0.00016999,5]
[399365841,1766317844750,-1120.29316525,0.00016999,5]
[399365842,1766317844759,-500.0,0.00016999,2]
[399365843,1766317844768,-500.0,0.00016999,2]
[399365844,1766317844776,-500.0,0.00016999,2]
[399365845,1766317844785,-500.0,0.00016999,2]
[399365846,1766317844794,-482.26053294,0.00016999,2]
[399365847,1766317844803,-500.0,0.00016999,2]
[399365848,1766317844811,-414.818323,0.00016999,2]
[399365849,1766317844820,-397.16543724,0.00016999,2]
[399365850,1766317844828,-300.0,0.00016999,2]
[399365851,1766317844837,-243.37225568,0.00016999,2]
[399365852,1766317844848,-666.0,0.00016999,2]
[399365853,1766317844857,-300.0,0.00016999,2]
[399365854,1766317844866,-666.0,0.00016999,2]
[399365855,1766317844874,-700859.89186695,0.00017,2]
[399365856,1766317844887,-5927.00000003,0.00017,2]
[399365857,1766317844898,-2993.80498,0.00017,2]
[399365858,1766317844908,-49000.0,0.00017,2]
[399365859,1766317844919,-258.6914863,0.00017,2]
[399365860,1766317844930,-221758.83144395,0.00017,2]
[399365861,1766317844940,-590.9981233,0.00017,2]
[399365862,1766317844951,-341148.40016211,0.00017,2]
[399365863,1766317844961,-4979.76509798,0.00017,2]
[399365864,1766317844971,-999.0,0.00017,2]
[399365865,1766317844982,-1670.25,0.00017,2]
[399365866,1766317844996,-757.35792708,0.00017,2]
[399365867,1766317845008,-591.566251,0.00017,2]
[399365868,1766317845019,-359.34614479,0.00017,2]
[399365869,1766317845071,-8517.94086926,0.00015344,2]
[399365870,1766317845080,-893.21117214,0.00016233,2]
[399365871,1766317845090,-8748.16852285,0.00017,2]
[399365872,1766317845102,-282.36355332,0.00017,2]
[399365873,1766317845114,-17257.1212,0.00017,2]
[399365874,1766317845125,-42850.62634397,0.00017,2]
[399365875,1766317845138,-5525.0,0.00017,2]
[399365876,1766317845149,-428.03955324,0.00017,2]
[399365877,1766317845537,-613.8076229,0.00017,2]
[399365878,1766317845593,-2147.1,0.00017,2]
[399365879,1766317845647,-869.29227437,0.00017,2]
[399365880,1766317845753,-1338.67452469,0.00017,2]
[399365881,1766317845765,-1169.3192,0.00017,2]
[399365882,1766317845807,-12305.62174631,0.00017,2]
[399365883,1766317845862,-607.30689385,0.00017,2]
[399365889,1766317860423,2839.66,0.00032876,120]
[399365890,1766317860659,2839.66,0.00033972,120]
[399365891,1766317860889,2839.66,0.00035068,120]
[399365893,1766317897791,288.42,0.000332,30]
[399365908,1766318019028,1000.95,0.000332,120]
[399365912,1766318029345,1000.95,0.000335,120]
[399365913,1766318040093,1000.95,0.000335,120]
[399365914,1766318049270,1000.95,0.000335,120]
[399365921,1766318090348,216.32,0.000333,30]
[399365922,1766318092813,2484.7,0.00032876,120]
[399365923,1766318093062,2484.7,0.00033972,120]
[399365924,1766318093431,2484.7,0.00035068,120]
[399365942,1766318264078,-350.0,0.00011767,2]
[399365945,1766318281236,304.27,0.000333,30]
[399365946,1766318326386,2174.12,0.00032876,120]
[399365947,1766318326799,2174.12,0.00033972,120]
[399365948,1766318327042,2174.12,0.00035068,120]
[399365971,1766318533522,271.999999,0.00035068,120]
[399365973,1766318554272,151.0,0.00035616,31]
[399365974,1766318555047,199.0,0.00034246,30]
[399365975,1766318555294,199.0,0.00034931,31]
[399365976,1766318555537,199.0,0.00035616,32]
[399365977,1766318572166,1902.35,0.00032876,120]
[399365978,1766318572749,1902.35,0.00033972,120]
[399365979,1766318572990,1902.35,0.00035068,120]
[399366007,1766318738365,287.59005644,0.00035616,30]
[399366024,1766318806352,1664.56,0.00032876,120]
[399366025,1766318806602,1664.56,0.00033972,120]
[399366026,1766318806842,1664.56,0.00035068,120]
[399366046,1766318941133,1000.0,0.00035615,30]
[399366047,1766318941332,1000.0,0.00035615,30]
[399366048,1766318941647,1000.0,0.00035615,30]
[399366049,1766318941878,1000.0,0.00035067,30]
[399366051,1766318949138,-246.0,0.00011767,2]
[399366052,1766318949159,-250.0,0.00011767,2]
[399366053,1766318949179,-195.0,0.00011767,2]
[399366054,1766318949199,-150.0,0.00011767,2]
[399366055,1766318949220,-269.4494774,0.00011813,2]
[399366056,1766318949238,-999.0,0.00011921,3]
[399366057,1766318949258,-2720.505181,0.00011955,2]
[399366097,1766319032322,-248.0,0.00011955,2]
[399366098,1766319032336,-528.32440645,0.00011955,2]
[399366099,1766319032349,-545.35015898,0.00011955,2]
[399366100,1766319032361,-731.34025357,0.00011955,2]
[399366101,1766319032370,-250.0,0.0001196,2]
[399366102,1766319032380,-152.68,0.00011965,2]
[399366103,1766319032390,-3694.97539433,0.00012022,2]
[399366104,1766319032401,-5667.94754477,0.00012022,2]
[399366105,1766319032410,-150.0,0.00012023,2]
[399366106,1766319032419,-1200.0,0.00012023,2]
[399366107,1766319032429,-300.0,0.00012023,2]
[399366108,1766319032438,-18199.3350296,0.00012024,2]
[399366109,1766319032450,-10602.46388241,0.00012024,2]
[399366110,1766319032462,-2609.5598784,0.00012024,2]
[399366111,1766319032477,-3040.84055057,0.00012024,2]
[399366112,1766319032488,-2653.7957141,0.00012024,2]
[399366114,1766319037855,-514.23391077,0.00012023,2]
[399366115,1766319037866,-292.62872881,0.00012023,2]
[399366116,1766319037876,-500.0,0.00012023,2]
[399366117,1766319037887,-500.0,0.00012023,2]
[399366118,1766319037898,-500.0,0.00012023,2]
[399366119,1766319037909,-500.0,0.00012023,2]
[399366120,1766319037920,-500.0,0.00012023,2]
[399366121,1766319037933,-500.0,0.00012023,2]
[399366122,1766319037944,-500.0,0.00012023,2]
[399366123,1766319037955,-500.0,0.00012023,2]
[399366124,1766319037966,-500.0,0.00012023,2]
[399366125,1766319037977,-500.0,0.00012023,2]
[399366126,1766319037988,-500.0,0.00012023,2]
[399366127,1766319038000,-500.0,0.00012023,2]
[399366128,1766319038010,-500.0,0.00012023,2]
[399366129,1766319038021,-500.0,0.00012023,2]
[399366130,1766319038032,-500.0,0.00012023,2]
[399366131,1766319038043,-500.0,0.00012023,2]
[399366132,1766319038055,-500.0,0.00012023,2]
[399366133,1766319038065,-415.29902754,0.00012023,2]
[399366134,1766319038076,-500.0,0.00012023,2]
[399366135,1766319038087,-500.0,0.00012023,2]
[399366136,1766319038098,-500.0,0.00012023,2]
[399366137,1766319038109,-962894.00494492,0.00012024,2]
[399366138,1766319038120,-1200.0,0.00012122,2]
[399366139,1766319038134,-157.4961,0.00012124,2]
[399366140,1766319038145,-4371.6334,0.00012124,2]
[399366141,1766319038155,-2500.0,0.00012124,2]
[399366142,1766319038166,-4038.28541477,0.00012124,2]
[399366143,1766319038177,-1589.23879842,0.00012124,2]
[399366144,1766319038189,-211.055,0.00012124,2]
[399366145,1766319038200,-731.84096737,0.00012124,2]
[399366146,1766319038210,-214.31682645,0.00012124,2]
[399366147,1766319038220,-7158.31889227,0.00012124,2]
[399366148,1766319038231,-151.0,0.00012216,2]
[399366149,1766319038242,-151.0,0.00012216,2]
[399366150,1766319038252,-151.0,0.00012216,2]
[399366151,1766319038263,-151.0,0.00012216,2]
[399366152,1766319038274,-151.0,0.00012216,2]
[399366153,1766319038285,-151.0,0.00012216,2]
[399366154,1766319038295,-151.0,0.00012216,2]
[399366155,1766319038306,-151.0,0.00012216,2]
[399366156,1766319038317,-151.0,0.00012216,2]
[399366157,1766319038327,-151.0,0.00012216,2]
[399366158,1766319038337,-151.0,0.00012216,2]
[399366159,1766319038348,-151.0,0.00012216,2]
[399366160,1766319038359,-151.0,0.00012216,2]
[399366161,1766319038369,-151.0,0.00012216,2]
[399366162,1766319038379,-151.0,0.00012216,2]
[399366163,1766319038390,-151.0,0.00012216,2]
[399366164,1766319038401,-151.0,0.00012216,2]
[399366165,1766319038412,-151.0,0.00012216,2]
[399366166,1766319038424,-151.0,0.00012216,2]
[399366167,1766319038435,-151.0,0.00012216,2]
[399366168,1766319038446,-500.0,0.00012223,2]
[399366169,1766319038458,-221.43334789,0.00012223,3]
[399366170,1766319038468,-1120.29316525,0.00012223,3]
[399366171,1766319038480,-2145.07550922,0.00012223,2]
[399366172,1766319038491,-1508.61,0.00012223,2]
[399366173,1766319038508,-25196.3449,0.00012224,2]
[399366174,1766319038519,-1000.0,0.00012224,2]
[399366175,1766319038531,-500.0,0.00012497,2]
[399366176,1766319038542,-1508.61,0.00012497,2]
[399366177,1766319038552,-38458.92349669,0.00012559,2]
[399366178,1766319038564,-9362.92293907,0.00012564,2]
[399366179,1766319038575,-7158.31889223,0.00012655,2]
[399366180,1766319038586,-500.0,0.00012771,2]
[399366181,1766319038597,-1508.61,0.00012771,2]
[399366182,1766319038607,-731.84096735,0.00012806,2]
[399366183,1766319038618,-1589.23879841,0.00012931,2]
[399366185,1766319038628,-195.0,0.00012944,2]
[399366186,1766319038639,-269.07888675,0.00012944,2]
[399366187,1766319038650,-300.0,0.00012944,2]
[399366188,1766319038662,-250.0,0.00012944,2]
[399366189,1766319038672,-235.71154484,0.00013045,2]
[399366190,1766319038683,-1508.61,0.00013045,2]
[399366191,1766319038694,-255.0,0.00013105,2]
[399366192,1766319038707,-9362.92293907,0.00013106,2]
[399366193,1766319038718,-250.0,0.00013151,2]
[399366194,1766319038729,-7158.31889223,0.00013185,2]
[399366195,1766319038740,-420.0,0.00013198,2]
[399366196,1766319038752,-1680.0,0.00013225,2]
[399366197,1766319038763,-163.12595914,0.00013273,2]
[399366198,1766319038774,-501.13880069,0.00013273,2]
[399366199,1766319038785,-500.0,0.00013273,2]
[399366200,1766319038797,-500.0,0.00013273,2]
[399366201,1766319038807,-535.80488435,0.00013273,2]
[399366202,1766319038819,-169.30599703,0.00013273,2]
[399366203,1766319038830,-172.78810174,0.00013273,2]
[399366204,1766319038842,-235.5477362,0.00013273,2]
[399366205,1766319038852,-166.07222089,0.00013273,2]
[399366206,1766319038863,-500.0,0.00013273,2]
[399366207,1766319038874,-500.0,0.00013273,2]
[399366208,1766319038885,-500.0,0.00013273,2]
[399366209,1766319038901,-165.55250469,0.00013273,2]
[399366210,1766319038912,-500.28275711,0.00013273,2]
[399366211,1766319038927,-163.74041745,0.00013273,2]
[399366212,1766319038941,-500.0,0.00013273,2]
[399366213,1766319038953,-172.62322663,0.00013273,2]
[399366214,1766319038966,-216.30072536,0.00013273,2]
[399366215,1766319038977,-515.90612576,0.00013273,2]
[399366216,1766319038990,-500.0,0.00013273,2]
[399366217,1766319039003,-162.88863399,0.00013273,2]
[399366218,1766319039014,-174.7668322,0.00013273,2]
[399366219,1766319039025,-224.07561459,0.00013273,2]
[399366220,1766319039036,-500.0,0.00013273,2]
[399366221,1766319039048,-176.68955298,0.00013273,2]
[399366222,1766319039060,-500.0,0.00013273,2]
[399366224,1766319039071,-500.0,0.00013273,2]
[399366227,1766319039083,-500.0,0.00013273,2]
[399366228,1766319039094,-201.68060624,0.00013273,2]
[399366230,1766319039105,-500.0,0.00013273,2]
[399366232,1766319039117,-500.0,0.00013273,2]
[399366233,1766319039127,-536.20400277,0.00013273,2]
[399366234,1766319039138,-500.0,0.00013273,2]
[399366235,1766319039148,-500.0,0.00013273,2]
[399366236,1766319039159,-276.49556074,0.00013273,2]
[399366238,1766319039171,-500.0,0.00013273,2]
[399366239,1766319039182,-165.33365869,0.00013273,2]
[399366240,1766319039193,-500.0,0.00013273,2]
[399366241,1766319039204,-500.0,0.00013273,2]
[399366242,1766319039214,-500.0,0.00013273,2]
[399366243,1766319039725,-179.52644703,0.00013273,2]
[399366244,1766319039738,-500.0,0.00013273,2]
[399366245,1766319039749,-500.0,0.00013273,2]
[399366246,1766319039759,-168.62041939,0.00013273,2]
[399366247,1766319039768,-162.06342056,0.00013273,2]
[399366248,1766319039778,-165.81830667,0.00013273,2]
[399366249,1766319039788,-160.24966058,0.00013273,2]
[399366250,1766319039797,-165.47156837,0.00013273,2]
[399366251,1766319039807,-500.0,0.00013273,2]
[399366252,1766319039817,-500.0,0.00013273,2]
[399366253,1766319039829,-500.0,0.00013273,2]
[399366254,1766319039839,-500.0,0.00013273,2]
[399366255,1766319039848,-500.0,0.00013273,2]
[399366256,1766319039858,-1508.61,0.00013319,2]
[399366257,1766319039868,-731.84096735,0.00013489,2]
[399366258,1766319039879,-1179.19274136,0.00013523,2]
[399366259,1766319039890,-1508.61,0.00013593,2]
[399366260,1766319039901,-3264.83,0.00013622,2]
[399366261,1766319039912,-9362.92293907,0.00013648,2]
[399366262,1766319039924,-227.6,0.00013649,2]
[399366263,1766319039941,-187.21,0.00013656,2]
[399366264,1766319039956,-200.0,0.00013668,2]
[399366265,1766319039967,-150.0,0.00013668,2]
[399366266,1766319039979,-190.1242664,0.00013689,2]
[399366267,1766319039991,-500.0,0.00013698,2]
[399366268,1766319040004,-500.0,0.00013698,2]
[399366269,1766319040015,-500.0,0.00013698,2]
[399366270,1766319040026,-500.0,0.00013698,2]
[399366271,1766319040038,-500.0,0.00013698,2]
[399366272,1766319040048,-500.0,0.00013698,2]
[399366273,1766319040059,-500.0,0.00013698,2]
[399366274,1766319040070,-500.0,0.00013698,2]
[399366275,1766319040081,-500.0,0.00013698,2]
[399366276,1766319040092,-500.0,0.00013698,2]
[399366277,1766319040103,-500.0,0.00013698,2]
[399366278,1766319040114,-500.0,0.00013698,2]
[399366279,1766319040125,-500.0,0.00013698,2]
[399366280,1766319040137,-500.0,0.00013698,2]
[399366281,1766319040148,-500.0,0.00013698,2]
[399366282,1766319040158,-500.0,0.00013698,2]
[399366283,1766319040170,-500.0,0.00013698,2]
[399366284,1766319040181,-500.0,0.00013698,2]
[399366285,1766319040193,-500.0,0.00013698,2]
[399366286,1766319040204,-500.0,0.00013698,2]
[399366287,1766319040215,-500.0,0.00013698,2]
[399366288,1766319040226,-500.0,0.00013698,2]
[399366289,1766319040237,-500.0,0.00013698,2]
[399366290,1766319040248,-500.0,0.00013698,2]
[399366291,1766319040259,-500.0,0.00013698,2]
[399366292,1766319040269,-500.0,0.00013698,2]
[399366293,1766319040280,-500.0,0.00013698,2]
[399366294,1766319040291,-500.0,0.00013698,2]
[399366295,1766319040303,-500.0,0.00013698,2]
[399366296,1766319040314,-13733.1,0.00013699,2]
[399366297,1766319040324,-196.43,0.00013699,2]
[399366298,1766319040335,-500.0,0.00013699,2]
[399366299,1766319040347,-500.0,0.00013699,2]
[399366300,1766319040366,-500.0,0.00013699,2]
[399366301,1766319040377,-500.0,0.00013699,2]
[399366302,1766319040387,-500.0,0.00013699,2]
[399366303,1766319040398,-500.0,0.00013699,2]
[399366304,1766319040409,-264.93246006,0.00013699,2]
[399366305,1766319040420,-500.0,0.00013699,2]
[399366306,1766319040435,-500.0,0.00013699,2]
[399366307,1766319040446,-500.0,0.00013699,2]
[399366308,1766319040457,-500.0,0.00013699,2]
[399366309,1766319040468,-500.0,0.00013699,2]
[399366310,1766319040479,-500.0,0.00013699,2]
[399366311,1766319040491,-500.0,0.00013699,2]
[399366312,1766319040501,-500.0,0.00013699,2]
[399366313,1766319040512,-500.0,0.00013699,2]
[399366314,1766319040523,-500.0,0.00013699,2]
[399366315,1766319040534,-500.0,0.00013699,2]
[399366316,1766319040545,-500.0,0.00013699,2]
[399366317,1766319040556,-500.0,0.00013699,2]
[399366318,1766319040567,-500.0,0.00013699,2]
[399366319,1766319040578,-7158.31889223,0.00013716,2]
[399366320,1766319040589,-1589.23879841,0.00013739,2]
[399366321,1766319040600,-920.99665958,0.00013806,2]
[399366322,1766319040611,-208.16009032,0.00013821,2]
[399366323,1766319040622,-501.0380524,0.00013821,2]
[399366324,1766319040633,-1001.62490087,0.00013821,2]
[399366325,1766319040644,-1000.0,0.00013821,2]
[399366326,1766319040655,-1001.10835573,0.00013821,2]
[399366327,1766319040666,-1000.0,0.00013821,2]
[399366328,1766319040676,-514.63903632,0.00013821,2]
[399366329,1766319040687,-535.22474582,0.00013821,2]
[399366330,1766319040698,-500.84654228,0.00013821,2]
[399366331,1766319040708,-627.6344399,0.00013821,2]
[399366332,1766319040720,-1000.0,0.00013821,2]
[399366333,1766319040730,-1000.0,0.00013821,2]
[399366334,1766319040741,-1000.0,0.00013821,2]
[399366335,1766319040752,-594.78120498,0.00013821,2]
[399366336,1766319040763,-1000.0,0.00013821,2]
[399366337,1766319040774,-453.53849539,0.00013821,2]
[399366338,1766319040787,-1000.0,0.00013821,2]
[399366339,1766319040798,-1000.0,0.00013821,2]
[399366340,1766319040809,-1000.0,0.00013821,2]
[399366341,1766319040820,-1000.0,0.00013821,2]
[399366342,1766319040832,-1000.0,0.00013821,2]
[399366343,1766319040842,-1000.0,0.00013821,2]
[399366344,1766319040853,-1000.0,0.00013821,2]
[399366345,1766319040864,-1000.0,0.00013821,2]
[399366346,1766319040875,-1000.0,0.00013821,2]
[399366347,1766319040886,-1000.0,0.00013821,2]
[399366348,1766319040896,-1508.61,0.00013867,2]
[399366349,1766319040909,-1508.61,0.00014141,2]
[399366350,1766319040925,-731.84096735,0.00014171,2]
[399366351,1766319040936,-9362.92293907,0.0001419,2]
[399366352,1766319040946,-7158.31889223,0.00014247,2]
[399366353,1766319040958,-433.0,0.00014283,2]
[399366354,1766319040970,-1940.64,0.00014315,2]
[399366355,1766319040986,-1500.0,0.00014368,2]